Cogmind - Beta 12 @@@ ROGUE MODE // 2023.07.31 @ 19:39:35 Player: Vladmirangel Result: Destroyed by as-02674 with Assembled Blade Performance ------------- Evolutions (1) 500 Regions Visited (4) 800 Robots Destroyed (29) 145 Value Destroyed (596) 596 Prototype IDs (0) 0 Alien Tech Used (0) 0 Bonus (0) 0 TOTAL SCORE: 2041 Bonus ------- None Cogmind --------- Core Integrity 0/400 Matter 251/300 Energy 100/100 System Corruption 0% Temperature Cool (0) Movement Core (350) Ox6 Location -9/Mines Parts ------- > --- POWER (1) -------- (None) > --- PROPULSION (3) --- (None) > --- UTILITY (3) ------ Large Storage Unit Improved Targeting Computer > --- WEAPON (2) ------- (None) > --- INVENTORY (15) --- Aluminum Leg Aluminum Leg Aluminum Leg Improved Aluminum Leg Improved Heat Sink Large Storage Unit Grenade Launcher Peak State ------------ > --- POWER ------------ Light Nuclear Core > --- PROPULSION ------- Light Treads Light Treads Light Treads > --- UTILITY ---------- Improved Heat Sink Improved Heat Sink Large Storage Unit > --- WEAPON ----------- Light Assault Rifle Heavy Assault Rifle > --- INVENTORY -------- Ion Engine Ion Engine Light Treads Light Treads Aluminum Leg Aluminum Leg Aluminum Leg Aluminum Leg Improved Aluminum Leg Large Storage Unit Grenade Launcher Rocket Launcher [Rating: 17] Favorites ----------- Power Ion Engine Engine Ion Engine Power Core Light Nuclear Core Propulsion Light Treads Treads Light Treads Leg Aluminum Leg Utility Large Storage Unit Device Heat Sink Storage Large Storage Unit Processor Improved Targeting Computer Protection Light Armor Plating Weapon Light Assault Rifle Energy Gun Small Laser Ballistic Gun Light Assault Rifle Launcher Rocket Launcher Build | -11 -10 -10 -9 -9 ------- Run | Jun Mat Min Mat Min Slots Evolved 2 | . . . 2 . Power . | . . . . . Propulsion 1 | . . . 1 . Utility 1 | . . . 1 . Weapon . | . . . . . Parts Attached 41 | 5 12 1 17 6 Power 4 | . 2 . 1 1 Engine 3 | . 2 . . 1 Core 1 | . . . 1 . Reactor . | . . . . . Propulsion 18 | 2 4 . 9 3 Treads 7 | . 2 . 4 1 Leg 11 | 2 2 . 5 2 Wheel . | . . . . . Hover . | . . . . . Flight . | . . . . . Utility 11 | 1 4 . 5 1 Device 6 | . 2 . 3 1 Storage 3 | 1 2 . . . Processor 1 | . . . 1 . Hackware . | . . . . . Protection 1 | . . . 1 . Artifact . | . . . . . Weapon 8 | 2 2 1 2 1 Energy Gun 3 | 1 1 1 . . Energy Cannon . | . . . . . Ballistic Gun 4 | 1 1 . 2 . Ballistic Cannon . | . . . . . Launcher 1 | . . . . 1 Special Weapon . | . . . . . Impact Weapon . | . . . . . Slashing Weapon . | . . . . . Piercing Weapon . | . . . . . Special Melee Weapon . | . . . . . Unidentified Prototypes . | . . . . . Parts Lost 17 | . 1 . 4 12 Power 2 | . . . . 2 Propulsion 7 | . . . 2 5 Utility 3 | . . . 1 2 Weapon 5 | . 1 . 1 3 Highest Loss Streak 7 | . 1 . 1 7 To Critical Strikes . | . . . . . Average Slot Usage (%) 94 | . 94 100 94 81 Engine 8 | . 11 14 5 7 Core 2 | . . . 5 3 Treads 16 | . 2 28 21 24 Leg 13 | . 25 . 11 4 Device 9 | . 10 14 9 . Storage 12 | . 15 14 11 11 Processor 2 | . . . 2 11 Protection 2 | . . . 5 3 Energy Gun 8 | . 12 14 3 . Ballistic Gun 16 | . 15 14 17 12 Naked Turns . | . . . . . Heaviest Build 35 | 8 28 28 35 34 Greatest Support 60 | 20 40 40 60 60 Greatest Overweight (x) 1 | 1 1 . . 1 Average Overweight (x) . | . . . . . Largest Inventory Capacity 15 | 8 15 15 15 15 Average Capacity 12 | 7 9 15 15 15 Most Carried 15 | 7 11 15 15 12 Average Carried 10 | 3 7 13 13 10 Final Capacity 15 | 8 15 15 15 15 Final Carried 15 | 5 11 15 13 7 Class Distribution -------------------- 70% | Mutant 29% | Scavenger-Mutant Dominant Class ---------------- Mutant | -10/Materials Mutant | -10/Mines Scavenger-Mutant | -9/Materials Mutant | -9/Mines Resources | -11 -10 -10 -9 -9 ----------- Run | Jun Mat Min Mat Min Matter Collected 798 | 250 132 51 365 . Remotely . | . . . . . Salvage Created 841 | . 259 130 448 4 Parts 65 | . 18 16 31 . Haulers Intercepted 2 | . . . 2 . Recyclers Shooed 5 | . . 1 4 . Parts Field Recycled . | . . . . . Retrieved Matter . | . . . . . Parts Self-Destructed . | . . . . . Prevented . | . . . . . Kills | -11 -10 -10 -9 -9 ------- Run | Jun Mat Min Mat Min Combat Hostiles Destroyed 23 | . 7 5 8 3 Melee 1 | . . 1 . . Guns 18 | . 6 4 8 . AOE 4 | . 1 . . 3 Classes Destroyed 8 | . 3 1 3 1 Worker 3 | . . 1 2 . Hauler 2 | . . . 2 . Operator 1 | . . . 1 . Watcher 3 | . 2 . 1 . Swarmer 9 | . 3 3 3 . Grunt 9 | . 4 2 3 . Sentry 2 | . . . 2 . Assembled 3 | . . . . 3 Best Kill Streak 4 | . 4 3 3 3 Combat Bots Only 4 | . 4 3 3 3 Max Kills in Single Turn 2 | . 1 1 2 1 Gunslinging 1 | . . . 1 . Exploded 1 | . 1 . . 1 Melee 1 | . . 1 . . Uniques/NPCs Destroyed . | . . . . . Combat | -11 -10 -10 -9 -9 -------- Run | Jun Mat Min Mat Min Damage Taken 2490 | . 415 66 829 1180 Core 525 | . 96 . 77 352 Absorbed by Shields . | . . . . . Core Remaining (%) 80 | 100 . 61 . . Volleys Fired 106 | . 34 11 57 4 Largest 2 | . 2 2 2 1 Hottest 60 | . 60 60 60 33 Shots Fired 205 | . 66 22 113 4 Gun 201 | . 66 22 113 . Cannon . | . . . . . Launcher 4 | . . . . 4 Special . | . . . . . Kinetic 157 | . 47 11 99 . Thermal 37 | . 12 11 14 . Explosive 4 | . . . . 4 Electromagnetic 7 | . 7 . . . Robot Hit Streak 12 | . 6 5 12 . Robot Miss Streak 4 | . 4 2 3 2 Penetration Max . | . . . . . Secondary Targets 2 | . . . 2 . Max Gunslinging Chain 1 | . . . 1 . Shots Hit Robots 116 | . 37 13 66 . Core Hits 58 | . 18 8 24 8 Critical Kills 1 | . 1 . . . Critical Parts Destroyed 1 | . . . 1 . Critical Strikes 2 | . 1 . 1 . Destroy 2 | . 1 . 1 . Melee Attacks . | . . . . . Impact . | . . . . . Slashing . | . . . . . Piercing . | . . . . . Sneak Attacks . | . . . . . Combat Hostiles . | . . . . . Follow-up Attacks . | . . . . . Damage Inflicted 1631 | . 410 130 872 219 Guns 1313 | . 348 126 839 . Cannons . | . . . . . Explosions 281 | . 62 . . 219 Melee . | . . . . . Ramming 37 | . . 4 33 . Kinetic 998 | . 200 37 761 . Thermal 318 | . 151 89 78 . Explosive 219 | . . . . 219 Electromagnetic 59 | . 59 . . . Impact . | . . . . . Slashing . | . . . . . Piercing . | . . . . . Highest Corruption . | . . . . . Average Corruption . | . . . . . Corruption Purged . | . . . . . Corruption Blocked . | . . . . . Overload Shots . | . . . . . Overflow Damage 8 | . 2 . . 6 Projectiles . | . . . . . Explosions 8 | . 2 . . 6 Melee . | . . . . . Knockbacks . | . . . . . Impact . | . . . . . Kinetic . | . . . . . Secondary . | . . . . . Self-Inflicted Damage 76 | . 30 . . 46 Shots 2 | . 1 . . 1 Rammed 5 | . . . 5 . Targets Rammed 8 | . . 1 7 . Kicked 1 | . . . 1 . Crushed 2 | . . 1 1 . Highest Temperature 32 | . 32 6 24 5 Average Temperature 11 | . 14 6 9 5 Received Heat Transfer 658 | . 141 18 339 160 Siege Activations . | . . . . . Robots Corrupted . | . . . . . Combat Hostiles . | . . . . . Parts Fried . | . . . . . Impact Corruptions . | . . . . . Robots Melted . | . . . . . Combat Hostiles . | . . . . . Parts Melted 1 | . 1 . . . Heat Transferred 675 | . 300 200 175 . Parts Sabotaged . | . . . . . Parts Stolen . | . . . . . Parts Stripped . | . . . . . Power Chain Reactions 1 | . 1 . . . Missiles Intercepted . | . . . . . Alert | -11 -10 -10 -9 -9 ------- Run | Jun Mat Min Mat Min Peak Influence 238 | . 230 136 238 45 Initial 52 | . . 11 52 45 Average 87 | . 120 62 103 16 Maximum Alert Level 1 | . 1 . 1 . Low Security (%) 94 | 100 84 100 98 100 Level 1 5 | . 15 . 1 . Level 2 . | . . . . . Level 3 . | . . . . . Level 4 . | . . . . . Level 5 . | . . . . . High Security . | . . . . . Max Security . | . . . . . Squads Dispatched 3 | . 2 . 1 . Investigation 1 | . 1 . . . Extermination . | . . . . . Reinforcement 2 | . 1 . 1 . Assault . | . . . . . Garrison . | . . . . . Intercept . | . . . . . Searches Triggered . | . . . . . Construction Impeded . | . . . . . Haulers Reinforced . | . . . . . Active Scanning Responses . | . . . . . Cargo Convoy Interrupts . | . . . . . Stealth | -11 -10 -10 -9 -9 --------- Run | Jun Mat Min Mat Min Distress Signals 3 | . 1 . 2 . Communications Jammed . | . . . . . Distress Signals . | . . . . . Times Spotted 51 | . 12 4 17 18 Peak Tracking Total 15 | . 4 2 4 15 Tactical Retreats 5 | . 1 . 1 3 Traps | -11 -10 -10 -9 -9 ------- Run | Jun Mat Min Mat Min Traps Triggered 1 | . 1 . . . Indirectly . | . . . . . Trap Hack Attempts . | . . . . . Triggered . | . . . . . Disarmed . | . . . . . Reprogrammed . | . . . . . Reused . | . . . . . Traps Extracted . | . . . . . Installed . | . . . . . Triggered . | . . . . . Machines | -11 -10 -10 -9 -9 ---------- Run | Jun Mat Min Mat Min Machines Disabled . | . . . . . Max in Single Turn . | . . . . . Machines Repaired . | . . . . . Machines Sabotaged . | . . . . . Overloaded Fab Kills . | . . . . . Hacking | -11 -10 -10 -9 -9 --------- Run | Jun Mat Min Mat Min Machines Accessed 3 | . 2 . 1 . Terminals 3 | . 2 . 1 . Fabricators . | . . . . . Repair Stations . | . . . . . Recycling Units . | . . . . . Scanalyzers . | . . . . . Garrison Access . | . . . . . Total Hacks 6 | . 5 . 1 . Successful 5 | . 4 . 1 . Failed 1 | . 1 . . . Catastrophic . | . . . . . Database Lockouts . | . . . . . Manual 3 | . 3 . . . Terminals 6 | . 5 . 1 . Fabricators . | . . . . . Repair Stations . | . . . . . Recycling Units . | . . . . . Scanalyzers . | . . . . . Garrison Access . | . . . . . Terminal Hacks 3 | . 2 . 1 . Recycling Unit Index 1 | . 1 . . . Locate Traps 1 | . 1 . . . Zone Layout 1 | . . . 1 . Fabricator Hacks . | . . . . . Repair Station Hacks . | . . . . . Recycling Unit Hacks . | . . . . . Scanalyzer . | . . . . . Garrison Access Hacks . | . . . . . Unauthorized Hacks 2 | . 2 . . . Terminals 2 | . 2 . . . Track 1 | . 1 . . . Botnet 1 | . 1 . . . Fabricators . | . . . . . Repair Stations . | . . . . . Recycling Units . | . . . . . Scanalyzers . | . . . . . Garrison Access . | . . . . . Data Cores Recovered 1 | . . . 1 . Used 1 | . . . 1 . Hacking Detections 3 | . 2 . 1 . Full Trace Events . | . . . . . Feedback Events . | . . . . . Feedback Blocked . | . . . . . Robot Schematics Acquired . | . . . . . Robots Built . | . . . . . Authchips . | . . . . . Time . | . . . . . Total Robot Build Rating . | . . . . . Part Schematics Acquired . | . . . . . Parts Built . | . . . . . Authchips . | . . . . . Time . | . . . . . Total Part Build Rating . | . . . . . Parts Repaired . | . . . . . Time . | . . . . . Parts Recycled . | . . . . . Recycled Matter . | . . . . . Retrieved Matter . | . . . . . Retrieved Components . | . . . . . Parts Scanalyzed . | . . . . . Part Schematics Acquired . | . . . . . Parts Damaged . | . . . . . Bothacking | -11 -10 -10 -9 -9 ------------ Run | Jun Mat Min Mat Min Used RIF Installer . | . . . . . Robots Hacked . | . . . . . Non-combat . | . . . . . Combat . | . . . . . Robot Hacks Applied . | . . . . . Relay Couplers Released . | . . . . . Fabnet Peak Effective % . | . . . . . Robots Rewired . | . . . . . Allies Hacked . | . . . . . Hacks Repelled . | . . . . . Allies | -11 -10 -10 -9 -9 -------- Run | Jun Mat Min Mat Min Total Allies . | . . . . . Largest Group . | . . . . . Highest-Rated Group . | . . . . . Highest-Rated Ally . | . . . . . Total Orders . | . . . . . Ally Attacks . | . . . . . Total Damage . | . . . . . Kills . | . . . . . Allies Corrupted . | . . . . . Allies Melted . | . . . . . Intel | -11 -10 -10 -9 -9 ------- Run | Jun Mat Min Mat Min Robot Analysis Total . | . . . . . Derelict Logs Recovered 1 | . . 1 . . Drone Launches . | . . . . . Drone Recoveries . | . . . . . Exploration | -11 -10 -10 -9 -9 ------------- Run | Jun Mat Min Mat Min Turns Passed 1536 | 127 484 237 569 119 Spaces Moved 811 | 95 274 124 254 64 Core 19 | 19 . . . . Treads 337 | . 25 124 134 54 Legs 455 | 76 249 . 120 10 Wheels . | . . . . . Hover . | . . . . . Flight . | . . . . . Fastest Speed 50 | 50 120 160 120 160 Average Speed 137 | 109 127 160 141 165 Slowest Speed 240 | 120 190 160 160 240 Overloaded Moves . | . . . . . Propulsion Burnouts . | . . . . . Robots Hopped . | . . . . . Cave-ins Triggered . | . . . . . Exploration Rate (%) 23 | 6 39 24 22 26 Regions Visited 4 Branch Regions 2 Pre-discovered Areas . | . . . . . Known Exits Taken . | . . . . . Unknown Exits Taken 4 | 1 1 1 1 . Scrap Searched . | . . . . . Spaces Dug . | . . . . . Terrain Destroyed 31 | . 2 . . 29 Melee . | . . . . . Projectile . | . . . . . AOE 31 | . 2 . . 29 Terrain Rammed . | . . . . . Walls Destroyed . | . . . . . Machines Disabled . | . . . . . Actions | -11 -10 -10 -9 -9 --------- Run | Jun Mat Min Mat Min Total 1046 | 118 354 143 357 74 Wait 18 | 9 6 . 3 . Move 807 | 94 273 123 253 64 Hop . | . . . . . Pick Up 44 | 10 18 5 11 . Fast Attach 1 | . 1 . . . Attach 27 | 5 4 . 12 6 Detach 1 | . . . 1 . Swap 13 | . 7 1 5 . Drop 21 | . 11 2 8 . Fire 106 | . 34 11 57 4 Melee . | . . . . . Ram . | . . . . . Kick 1 | . . . 1 . Crush 7 | . . 1 6 . Escape Stasis . | . . . . . Rewire . | . . . . . Trap . | . . . . . Miscellaneous . | . . . . . Route ------- -11/Junkyard -10/Materials -10/Mines -9/Materials -9/Mines History --------- Turn | Location | Event 10 | -11/Junkyard | Discovered new exit (range 15) 128 | -11/Junkyard | Entered Materials 311 | -10/Materials | Build established: Mutant 531 | -10/Materials | Discovered new exit (range 6) 612 | -10/Materials | Entered Mines 632 | -10/Mines | Found a hidden stash of uninstalled traps 797 | -10/Mines | Discovered new exit (range 7) 812 | -10/Mines | Learned Materials emergency access door positions 849 | -10/Mines | Entered Materials 849 | -9/Materials | Evolved 2 slots: Propulsion x1, Utility x1 1167 | -9/Materials | Discovered new exit (range 16) 1398 | -9/Materials | Build established: Scavenger-Mutant 1418 | -9/Materials | Entered Mines 1432 | -9/Mines | Assembled infested the area 1488 | -9/Mines | Core integrity fell below 50% 1501 | -9/Mines | Lost 5 parts (1p1n2u1w) 1535 | -9/Mines | Core integrity fell below 20% 1537 | -9/Mines | Destroyed by as-02674 with Assembled Blade Last Messages --------------- Hvy. Assault Rifle destroyed. Imp. Heat Sink destroyed. Lgt. Treads destroyed. K-01 Serf collects debris. Lgt. Treads destroyed. Hvy. Assault Rifle destroyed. S-10 Pest destroyed. T-07 Excavator destroyed. K-01 Serf collects debris. as-63274 destroyed. T-07 Excavator destroyed. Aluminum Leg destroyed. Ion Engine destroyed. as-77511 destroyed. Lgt. Treads destroyed. Aluminum Leg destroyed. as-54895 destroyed. as-88046 destroyed. Rocket Launcher destroyed. Destroyed Rocket Launcher. Map ----- +----------------------------------------------------+ | ????????????????????????????????????? | | ????????????????????????????????????? | | ????????????????????????????????????? | | ????????????????? ???????????????? | | ????????????????? #??????????????? | | ????????????????# *%=#??????????????? | | ????????????????# = #??????????????? | | ???????????????## = ???????????????? | | ##????????????## #???????????????? | | ???????????## ????????????????? | | #???????????# #????????????????? | | #??????????## #????????????????? | | #??????????# ???????????????? | | #??????????# #??????????????? | | #???????????# #?????????????? | | ############# ##???????????? | | = ###????????? | | ############# % a #????????? | | ????????????# a | #????????? | | ????????????## #????????? | | ?????????????## a ##???????? | | ??????????????## ####????? | | ???????????????## ##???? | | ????????????????## ##??? | | ?????????????????#### %a #??? | | ?????????????????????# @ #??? | | ?????????????????????## ##??? | | ????????????????????? #### #???? | | ??????????????????? ????? #???? | | ??????????????????## ??????? #???? | | ???????????????????## ?????????##???? | | ????????????????????#???????????????? | | ????????????????????????????????????? | | ????????????????????????????????????? | | ????????????????????????????????????? | | ????????????????????????????????????? | | ????????????????????????????????????? | | ????????????????????????????????????? | | ????????????????????????????????????? | | ????????????????????????????????????? | | ????????????????????????????????????? | | ????????????????????????????????????? | | ????????????????????????????????????? | | ????????????????????????????????????? | | ????????????????????????????????????? | | ????????????????????????????????????? | | ????????????????????????????????????? | | ????????????????????????????????????? | | ????????????????????????????????????? | | ????????????????????????????????????? | +----------------------------------------------------+ Best States ------------- Heat Dissipation 56 Energy Generation 14 Energy Capacity 250 Matter Stores 300 Matter Capacity 300 Sight Range 16 Terrain Scan Density 10 Armor Coverage 150 Evasion (%) 55 Targeting Accuracy 6 Recoil Reduction 3 Item Schematics ----------------- None Robot Schematics ------------------ None Fabricated ------------ Nothing Alien Tech Used ----------------- None Achievements -------------- None Challenges ------------ None Game ------ Seed AntimatterAlertShotgun Manual? 0 Play Time 00:25:57 Cumulative 56.5 hours Start 2023.07.31 @ 18:30:39 End 2023.07.31 @ 19:39:35 Sessions 1 Manual Loads 0 Difficulty Rogue Special Mode None Game No. 70 Rogue 69 Adventurer 0 Explorer 1 Win Type - Total 0 Types 0/0/0/0/0/0/0/0/0 Lore% 27 Gallery% 41 Achievement% 32 Wizard Run 0 Options --------- ASCII 0 Keyboard 0 Movement Mouse Keybinds 0 Fullscreen 1 Font 16/Terminus Map View 76x50 Tactical HUD 0 Map Filters NONE Filters NONE Steam 1 RUN: 10164e94-2c60-4ecc-9e00-d2cca8de5644